Cogmind - Beta 14 @@@ ROGUE MODE // 2024.10.21 @ 10:24:20 Player: canerib Result: Destroyed by S-27 Virus with Autogun Performance ------------- Evolutions (3) 1500 Regions Visited (5) 1000 Robots Destroyed (43) 215 Value Destroyed (1313) 1313 Prototype IDs (2) 40 Alien Tech Used (0) 0 Bonus (0) 0 TOTAL SCORE: 4068 Bonus ------- None Cogmind --------- Core Integrity 0/700 Matter 107/300 Energy 99/100 System Corruption 6% Temperature Cool (0) Movement Core (50) Location -7/Factory Parts ------- > --- POWER (1) -------- (None) > --- PROPULSION (6) --- (None) > --- UTILITY (4) ------ Improved Melee Analysis Suite > --- WEAPON (2) ------- (None) > --- INVENTORY (5) ---- Heavy Deuterium Engine VTOL Module ECM Suite Relay Coupler [Swarmer] (31) Peak State ------------ > --- POWER ------------ Light Deuterium Engine > --- PROPULSION ------- Medium Treads Medium Treads Improved Titanium Leg Antigrav System Xenon Bombardment Thruster > --- UTILITY ---------- Coolant Injector Coolant Injector Improved Melee Analysis Suite Advanced ECM Suite > --- WEAPON ----------- Heavy Laser Plasma Cannon > --- INVENTORY -------- Heavy Deuterium Engine Small Matter Pod Relay Coupler [Swarmer] [Rating: 49] Favorites ----------- Power Ion Engine Engine Ion Engine Propulsion Aluminum Leg Treads Medium Treads Leg Aluminum Leg Hover Unit Antigrav System Flight Unit Xenon Bombardment Thruster Utility Large Storage Unit Device Coolant Injector Storage Large Storage Unit Processor Improved Melee Analysis Suite Protection Light Armor Plating Weapon Small Laser Energy Gun Small Laser Energy Cannon Plasma Cannon Ballistic Gun Assault Rifle Launcher Grenade Launcher Special Weapon Mining Laser Build | -11 -10 -9 -9 -8 -7 ------- Run | Yrd Mat Mat Min Mat Fac Slots Evolved 6 | . . 2 . 2 2 Power . | . . . . . . Propulsion 4 | . . 2 . 1 1 Utility 2 | . . . . 1 1 Weapon . | . . . . . . Parts Attached 59 | 8 2 6 5 16 22 Power 7 | 1 . . 1 . 5 Engine 7 | 1 . . 1 . 5 Core . | . . . . . . Reactor . | . . . . . . Propulsion 22 | 2 1 . 1 10 8 Treads 5 | . . . . 3 2 Leg 8 | 2 1 . 1 2 2 Wheel . | . . . . . . Hover 2 | . . . . . 2 Flight 7 | . . . . 5 2 Utility 14 | 2 1 1 1 4 5 Device 8 | 1 . . 1 2 4 Storage 2 | 1 . 1 . . . Processor 3 | . . . . 2 1 Hackware . | . . . . . . Protection 1 | . 1 . . . . Artifact . | . . . . . . Weapon 16 | 3 . 5 2 2 4 Energy Gun 4 | 2 . 1 . . 1 Energy Cannon 1 | . . . . . 1 Ballistic Gun 2 | 1 . 1 . . . Ballistic Cannon . | . . . . . . Launcher 7 | . . 2 1 2 2 Special Weapon 2 | . . 1 1 . . Impact Weapon . | . . . . . . Slashing Weapon . | . . . . . . Piercing Weapon . | . . . . . . Special Melee Weapon . | . . . . . . Unidentified Prototypes 2 | . . . . 1 1 Parts Lost 40 | . 2 2 4 17 15 Power 4 | . . . 2 . 2 Propulsion 20 | . 1 . 1 10 8 Utility 8 | . 1 1 . 4 2 Weapon 8 | . . 1 1 3 3 Highest Loss Streak 8 | . 2 2 2 8 8 To Critical Strikes 1 | . . . . . 1 Average Slot Usage (%) 59 | . 97 71 44 54 52 Engine 4 | . 14 11 . . 4 Treads 3 | . . . . 10 7 Leg 15 | . 25 22 21 10 6 Flight 3 | . . . . 12 4 Device 6 | . 5 . . 6 13 Storage 7 | . 14 11 11 4 . Processor 2 | . . . . 6 5 Protection 1 | . 7 6 . . . Energy Gun 6 | . 28 11 . . 2 Ballistic Gun 3 | . . 4 11 1 . Peak Build Rating 49 | 7 7 7 6 20 49 Average Rating 12 | 4 6 6 4 11 25 On Entrance 4 | . 7 7 6 5 4 Naked Turns 8 | . . . . 8 . Heaviest Build 30 | 13 15 30 30 24 27 Greatest Support 60 | 20 20 20 20 60 56 Greatest Overweight (x) 6 | 1 1 1 2 6 3 Average Overweight (x) . | . . . 1 . . Largest Inventory Capacity 15 | 8 8 15 15 15 5 Average Capacity 9 | 7 8 10 15 9 5 Most Carried 9 | 5 8 9 9 8 5 Average Carried 5 | 2 7 7 7 1 2 Final Capacity 15 | 8 8 15 15 5 5 Final Carried 8 | 4 8 8 8 1 4 Class Distribution -------------------- 95% | Mutant 4% | Scavenger-Mutant Dominant Class ---------------- Mutant | -10/Materials Mutant | -9/Materials Mutant | -9/Mines Mutant | -8/Materials Mutant | -7/Factory Resources | -11 -10 -9 -9 -8 -7 ----------- Run | Yrd Mat Mat Min Mat Fac Matter Collected 1035 | 246 54 53 218 149 315 Remotely . | . . . . . . Salvage Created 1078 | 22 282 85 172 257 260 Parts 73 | 5 21 6 5 21 15 Haulers Intercepted 1 | . . . . 1 . Recyclers Shooed . | . . . . . . Parts Field Recycled . | . . . . . . Retrieved Matter . | . . . . . . Parts Self-Destructed . | . . . . . . Prevented . | . . . . . . Kills | -11 -10 -9 -9 -8 -7 ------- Run | Yrd Mat Mat Min Mat Fac Combat Hostiles Destroyed 33 | . 10 5 5 7 6 Guns 16 | . 10 . 4 . 2 Cannons 2 | . . . . . 2 AOE 15 | . . 5 1 7 2 Classes Destroyed 12 | 1 3 2 2 3 1 Worker 3 | . . 1 . . 2 Builder 3 | . . . . 3 . Tunneler 1 | 1 . . . . . Hauler 1 | . . . . 1 . Watcher 2 | . 1 . . 1 . Swarmer 10 | . 6 3 . . 1 Grunt 12 | . 4 . 3 5 . Brawler 1 | . . . 1 . . Duelist 1 | . . . 1 . . Sentry 4 | . . 2 . 1 1 Hunter 2 | . . . . 1 1 Programmer 3 | . . . . . 3 Best Kill Streak 8 | 1 3 5 2 8 3 Combat Bots Only 6 | . 3 4 2 6 2 Max Kills in Single Turn 4 | 1 1 4 1 4 1 Gunslinging . | . . . . . . Exploded 3 | . . 3 1 3 1 Melee . | . . . . . . Uniques/NPCs Destroyed . | . . . . . . Combat | -11 -10 -9 -9 -8 -7 -------- Run | Yrd Mat Mat Min Mat Fac Hostile Shots Fired 493 | . 49 29 35 114 266 Missed 181 | . 12 6 7 43 113 Damage Taken 4792 | . 375 311 368 1750 1988 Core 1354 | . 94 43 99 416 702 Absorbed by Shields . | . . . . . . Core Remaining (%) 62 | 100 62 . 64 24 . Volleys Fired 119 | 1 24 10 24 21 39 Largest 2 | 2 2 2 2 1 2 Hottest 149 | 80 80 70 100 33 149 Shots Fired 175 | 2 48 16 27 21 61 Gun 107 | 2 48 8 20 5 24 Cannon 24 | . . . . . 24 Launcher 40 | . . 8 3 16 13 Special 4 | . . . 4 . . Kinetic 27 | . . 2 20 5 . Thermal 108 | 2 48 6 4 . 48 Explosive 40 | . . 8 3 16 13 Electromagnetic . | . . . . . . Robot Hit Streak 10 | 1 5 7 6 10 5 Robot Miss Streak 4 | 1 2 1 4 2 2 Penetration Max . | . . . . . . Secondary Targets 1 | . 1 . . . . Max Gunslinging Chain 1 | . 1 . . . . Shots Hit Robots 105 | 1 28 11 17 11 37 Core Hits 76 | 1 15 9 9 25 17 Critical Kills . | . . . . . . Critical Parts Destroyed . | . . . . . . Critical Strikes 1 | . . . . . 1 Burn 1 | . . . . . 1 Melee Attacks . | . . . . . . Impact . | . . . . . . Slashing . | . . . . . . Piercing . | . . . . . . Sneak Attacks . | . . . . . . Combat Hostiles . | . . . . . . Follow-up Attacks . | . . . . . . Damage Inflicted 3275 | 12 317 315 357 1026 1248 Guns 846 | 12 317 46 186 43 242 Cannons 481 | . . . . . 481 Explosions 1941 | . . 269 171 983 518 Melee . | . . . . . . Ramming 7 | . . . . . 7 Kinetic 242 | . . 13 186 43 . Thermal 1085 | 12 317 33 . . 723 Explosive 1941 | . . 269 171 983 518 Electromagnetic . | . . . . . . Impact . | . . . . . . Slashing . | . . . . . . Piercing . | . . . . . . Highest Corruption 10 | . . 1 2 10 6 Average Corruption 2 | . . 1 1 10 3 Corruption Purged . | . . . . . . Corruption Blocked . | . . . . . . Effects 18 | . . 1 7 . 10 Message Errors 2 | . . . 1 . 1 Matter Fused 6 | . . . 2 . 4 Heat Flow Errors 3 | . . . 2 . 1 Energy Discharges 3 | . . . 1 . 2 Data Loss (minor) 2 | . . 1 1 . . Weapon Failures 2 | . . . . . 2 Overload Shots . | . . . . . . Overflow Damage 52 | . . 11 5 3 33 Projectiles 18 | . . . . . 18 Explosions 34 | . . 11 5 3 15 Melee . | . . . . . . Knockbacks . | . . . . . . Impact . | . . . . . . Kinetic . | . . . . . . Secondary . | . . . . . . Self-Inflicted Damage 134 | . . 39 12 83 . Shots 5 | . . 1 1 3 . Rammed 1 | . . . . 1 . Targets Rammed 2 | . . . . 1 1 Kicked 1 | . . . . . 1 Crushed . | . . . . . . Highest Temperature 209 | 18 162 37 209 . 197 Average Temperature 73 | 12 58 20 68 . 99 Received Heat Transfer 1239 | . 126 90 156 522 345 Siege Activations . | . . . . . . Robots Corrupted . | . . . . . . Combat Hostiles . | . . . . . . Parts Fried . | . . . . . . Impact Corruptions . | . . . . . . Robots Melted . | . . . . . . Combat Hostiles . | . . . . . . Parts Melted 4 | . . . . . 4 Heat Transferred 2243 | 25 725 75 . . 1418 Parts Sabotaged . | . . . . . . Parts Stolen . | . . . . . . Parts Stripped . | . . . . . . Power Chain Reactions . | . . . . . . Alert | -11 -10 -9 -9 -8 -7 ------- Run | Yrd Mat Mat Min Mat Fac Peak Influence 330 | 5 309 330 203 301 291 Initial 130 | . 3 130 128 19 105 Average 136 | 1 215 241 114 78 118 Maximum Alert Level 1 | . 1 1 1 1 1 Low Security (%) 62 | 100 36 48 54 90 72 Level 1 37 | . 63 51 45 9 27 Level 2 . | . . . . . . Level 3 . | . . . . . . Level 4 . | . . . . . . Level 5 . | . . . . . . High Security . | . . . . . . Max Security . | . . . . . . Squads Dispatched 7 | . 1 1 . 2 3 Investigation 3 | . 1 . . 1 1 Extermination 1 | . . . . . 1 Reinforcement 3 | . . 1 . 1 1 Assault . | . . . . . . Garrison . | . . . . . . Intercept . | . . . . . . Searches Triggered . | . . . . . . Construction Impeded 1 | . . 1 . . . Haulers Reinforced . | . . . . . . Active Scanning Responses . | . . . . . . Cargo Convoy Interrupts . | . . . . . . Stealth | -11 -10 -9 -9 -8 -7 --------- Run | Yrd Mat Mat Min Mat Fac Distress Signals 3 | . 2 . . . 1 Communications Jammed . | . . . . . . Distress Signals . | . . . . . . Times Spotted 66 | . 16 5 5 19 21 Peak Tracking Total 9 | . 7 5 3 9 6 Tactical Retreats 9 | . 2 1 . 3 3 Traps | -11 -10 -9 -9 -8 -7 ------- Run | Yrd Mat Mat Min Mat Fac Traps Triggered 5 | . 1 1 . 1 2 Indirectly . | . . . . . . Trap Hack Attempts . | . . . . . . Triggered . | . . . . . . Disarmed . | . . . . . . Reprogrammed . | . . . . . . Reused . | . . . . . . Traps Extracted . | . . . . . . Installed . | . . . . . . Triggered . | . . . . . . Machines | -11 -10 -9 -9 -8 -7 ---------- Run | Yrd Mat Mat Min Mat Fac Machines Disabled 8 | . . . . 2 6 Max in Single Turn 5 | . . . . 1 5 Machines Repaired . | . . . . . . Machines Dismantled . | . . . . . . Machines Sabotaged . | . . . . . . Overloaded Fab Kills . | . . . . . . Hacking | -11 -10 -9 -9 -8 -7 --------- Run | Yrd Mat Mat Min Mat Fac Machines Accessed 9 | . 6 . . . 3 Terminals 8 | . 6 . . . 2 Fabricators . | . . . . . . Repair Stations 1 | . . . . . 1 Recycling Units . | . . . . . . Scanalyzers . | . . . . . . Garrison Access . | . . . . . . Total Hacks 26 | . 17 . . . 9 Successful 8 | . 3 . . . 5 Failed 18 | . 14 . . . 4 Catastrophic 11 | . 8 . . . 3 Database Lockouts . | . . . . . . Manual 13 | . 13 . . . . Terminals 22 | . 17 . . . 5 Fabricators . | . . . . . . Repair Stations 4 | . . . . . 4 Recycling Units . | . . . . . . Scanalyzers . | . . . . . . Garrison Access . | . . . . . . Terminal Hacks 6 | . 3 . . . 3 Record 2 | . . . . . 2 Locate Traps 2 | . 1 . . . 1 Hauler Manifests 1 | . 1 . . . . Zone Layout 1 | . 1 . . . . Fabricator Hacks . | . . . . . . Repair Station Hacks 2 | . . . . . 2 Scan Component 2 | . . . . . 2 Recycling Unit Hacks . | . . . . . . Scanalyzer . | . . . . . . Garrison Access Hacks . | . . . . . . Unauthorized Hacks . | . . . . . . Terminals . | . . . . . . Fabricators . | . . . . . . Repair Stations . | . . . . . . Recycling Units . | . . . . . . Scanalyzers . | . . . . . . Garrison Access . | . . . . . . Data Cores Recovered . | . . . . . . Used . | . . . . . . Hacking Detections 9 | . 6 . . . 3 Full Trace Events 1 | . . . . . 1 Feedback Events . | . . . . . . Feedback Blocked . | . . . . . . Robot Schematics Acquired . | . . . . . . Robots Built . | . . . . . . Authchips . | . . . . . . Time . | . . . . . . Total Robot Build Rating . | . . . . . . Part Schematics Acquired . | . . . . . . Parts Built . | . . . . . . Authchips . | . . . . . . Time . | . . . . . . Total Part Build Rating . | . . . . . . Parts Repaired . | . . . . . . Time . | . . . . . . Parts Recycled . | . . . . . . Recycled Matter . | . . . . . . Retrieved Matter . | . . . . . . Retrieved Components . | . . . . . . Parts Scanalyzed . | . . . . . . Part Schematics Acquired . | . . . . . . Parts Damaged . | . . . . . . Bothacking | -11 -10 -9 -9 -8 -7 ------------ Run | Yrd Mat Mat Min Mat Fac Used RIF Installer . | . . . . . . Robots Hacked . | . . . . . . Non-combat . | . . . . . . Combat . | . . . . . . Robot Hacks Applied . | . . . . . . Relay Couplers Released 4 | . . . . . 4 Programmers 4 | . . . . . 4 Fabnet Peak Effective % . | . . . . . . Robots Rewired . | . . . . . . Allies Hacked . | . . . . . . Hacks Repelled . | . . . . . . Allies | -11 -10 -9 -9 -8 -7 -------- Run | Yrd Mat Mat Min Mat Fac Total Allies . | . . . . . . Largest Group . | . . . . . . Highest-Rated Group . | . . . . . . Highest-Rated Ally . | . . . . . . Total Orders . | . . . . . . Ally Attacks . | . . . . . . Total Damage . | . . . . . . Kills . | . . . . . . Allies Corrupted . | . . . . . . Allies Melted . | . . . . . . Intel | -11 -10 -9 -9 -8 -7 ------- Run | Yrd Mat Mat Min Mat Fac Robot Analysis Total . | . . . . . . Derelict Logs Recovered 1 | . . . 1 . . Drone Launches . | . . . . . . Drone Recoveries . | . . . . . . Exploration | -11 -10 -9 -9 -8 -7 ------------- Run | Yrd Mat Mat Min Mat Fac Turns Passed 2621 | 81 392 274 720 332 822 Spaces Moved 1716 | 53 244 154 331 222 712 Core 357 | 15 . . . 3 339 Treads 41 | . . . . 22 19 Legs 1190 | 38 244 154 331 73 350 Wheels . | . . . . . . Hover . | . . . . . . Flight 128 | . . . . 124 4 Fastest Speed 35 | 50 120 120 190 35 35 Average Speed 122 | 112 124 144 191 106 91 Slowest Speed 350 | 190 190 190 260 350 200 Overloaded Moves . | . . . . . . Propulsion Burnouts . | . . . . . . Robots Hopped 3 | . . . . 3 . Cave-ins Triggered 1 | . . . . 1 . Exploration Rate (%) 34 | 5 45 20 74 30 31 Regions Visited 5 Branch Regions 1 Pre-discovered Areas . | . . . . . . Known Exits Taken . | . . . . . . Unknown Exits Taken 5 | 1 1 1 1 1 . Scrap Searched 1 | . . . 1 . . Spaces Dug . | . . . . . . Terrain Destroyed 290 | . . 47 28 147 68 Melee . | . . . . . . Projectile 1 | . . . 1 . . AOE 289 | . . 47 27 147 68 Terrain Rammed . | . . . . . . Walls Destroyed . | . . . . . . Machines Disabled . | . . . . . . Actions | -11 -10 -9 -9 -8 -7 --------- Run | Yrd Mat Mat Min Mat Fac Total 2042 | 72 285 189 382 292 822 Wait 78 | . 6 15 16 26 15 Move 1705 | 52 243 153 330 215 712 Hop 3 | . . . . 3 . Pick Up 57 | 11 8 3 4 9 22 Fast Attach . | . . . . . . Attach 50 | 7 2 2 3 16 20 Detach 3 | . . . 1 . 2 Swap 9 | 1 . 4 2 . 2 Drop 11 | . 2 2 2 1 4 Fire 119 | 1 24 10 24 21 39 Melee . | . . . . . . Ram . | . . . . . . Kick 1 | . . . . . 1 Crush 1 | . . . . 1 . Escape Stasis 5 | . . . . . 5 Rewire . | . . . . . . Trap . | . . . . . . Miscellaneous . | . . . . . . Route ------- -11/Scrapyard -10/Materials -9/Materials -9/Mines (discovered 2 exits: [*Mat x2]) -8/Materials -7/Factory History --------- Turn | Location | Event 8 | -11/Scrapyard | Discovered new exit (range 15) 82 | -11/Scrapyard | Entered Materials 302 | -10/Materials | Build established: Mutant 344 | -10/Materials | Discovered new exit (range 5) 474 | -10/Materials | Entered another Materials area 474 | -9/Materials | Evolved 2 slots: Propulsion x2 725 | -9/Materials | Discovered new exit (range 9) 748 | -9/Materials | Entered Mines 927 | -9/Mines | A weapon hastily lodged in a ceiling crevice suddenly fell to the ground 1014 | -9/Mines | Discovered new exit (range 5) 1063 | -9/Mines | Learned Materials terminal intel 1343 | -9/Mines | Discovered new exit (range 9) 1468 | -9/Mines | Entered Materials 1468 | -8/Materials | Evolved 2 slots: Propulsion x1, Utility x1 1469 | -8/Materials | Loaded intel: 10 terminal locations 1655 | -8/Materials | Lost 8 parts (5n2u1w) 1704 | -8/Materials | Core integrity fell below 50% 1788 | -8/Materials | Crushed by falling debris 1788 | -8/Materials | System corruption reached 10% 1796 | -8/Materials | Discovered new exit (range 10) 1800 | -8/Materials | Entered Factory 1800 | -7/Factory | Evolved 2 slots: Propulsion x1, Utility x1 1822 | -7/Factory | Lost 7 parts (4n2u1w) 2366 | -7/Factory | Lost 8 parts (1p4n1u2w) 2413 | -7/Factory | Core integrity fell below 50% 2441 | -7/Factory | Lost 3 parts (1p2n) 2584 | -7/Factory | Core integrity fell below 20% 2620 | -7/Factory | Lost 3 parts (1n1u1w) 2622 | -7/Factory | Destroyed by S-27 Virus with Autogun Last Messages --------------- Distributed [Storage] Facility. An area designated for storage of materials and components. Distribution serves two purposes, making local access to resources easier while also minimizing losses in the event that one is compromised. DSF entrances are temporarily sealed in the event that potential threats appear in the areas they serve. 02510_ K-01 Serf collects debris. 02512_ System corrupted: Energy discharge (-37). 02527_ System corrupted: Energy discharge (-28). 02540_ Dropped Sml. Matter Pod. 02540_ Acquired ECM Suite. 02559_ Adv. ECM Suite destroyed. 02585_ The unstable cave ceiling collapses. 02585_ System corrupted: Imp. Grenade Launcher failed to launch. 02585_ Imp. Grenade Launcher destroyed. 02589_ Cesium-ion Thruster destroyed. 02589_ Acquired 8 matter. 02590_ Acquired VTOL Module. 02599_ U-05 Engineer lays Concrete. 02609_ H1R21YYJOP&RA>QDM:ST, EG MU [Achievement: Just Browsing] Map ----- +----------------------------------------------------+ | ?????? ??????????????????????????????????????????? | | ?????# ??????????????????????????????????????????? | | ?????# ??????????????????????????????????????????? | | ?????# ???????????? ?????????????????????????????? | | ?????# ??????????? ????????????????????????????? | | ?????# #????????? ????????????????????????????? | | ?????# ####????? ???????????????????????????? | | ?????# ##### ???????????????????????????? | | ?????# ???????????????????????????? | | ?????# ??????????????????????????? | | ?????# ???????????????????????????? | | ###??# ???????????????????????????? | | #### ?? ???????????????????????????? | | / #????????? ???????????????????????????? | | ####### #????????? ???????????????????????????? | | " #?????# #????????? ???????????????????????????? | | " #?????# #????????? ???????????????????????????? | | " #?????# #????????# ???????????????????????????? | | #?????# #????????# ???????????????????????????? | | " #?????# #????????# ???????????????????????????? | | " #######+#######??# #??#####+####???????????????? | | " ## #??# #??# ????????????????? | | ## "" #??# #??# ?????????????????? | | ## G" #??# #??# """""?????????????????? | | #### "" #### #### """""?????????????????? | | # g s /@ """""?????????????????? | | ! # #### #### """""?????????????????? | | + """"" #??# #??#/ ???????????????? | | # """"" #??# #??# #??????????????? | | # """ #??# #??###########??????????????? | | # #??# #???????????????????????????? | | # ! ! #??# #???????????????????????????? | | # #??# #???????????????????????????? | | ###########+##??# #???????????????????????????? | | ?????????????? ????????????????????????????? | | ##+??????????????#????????????????????????????? | | #?????????????????????????????????????????????? | | ####?????????????????????????????????????????????? | | ?????????????????????????????????????????????????? | | ?????????????????????????????????????????????????? | | ?????????????????????????????????????????????????? | | ?????????????????????????????????????????????????? | | ?????????????????????????????????????????????????? | | ?????????????????????????????????????????????????? | | ?????????????????????????????????????????????????? | | ?????????????????????????????????????????????????? | | ?????????????????????????????????????????????????? | | ?????????????????????????????????????????????????? | | ?????????????????????????????????????????????????? | | ?????????????????????????????????????????????????? | +----------------------------------------------------+ Best States ------------- Heat Dissipation 53 Coolant Potential 130 Energy Generation 18 Energy Capacity 310 Matter Stores 300 Matter Capacity 300 Sight Range 18 Terrain Scan Density 85 ECM Strength 2 Armor Coverage 150 Evasion (%) 63 Melee Accuracy 6 Recoil Reduction 3 Item Schematics ----------------- None Robot Schematics ------------------ None Fabricated ------------ Nothing Alien Tech Used ----------------- None Achievements -------------- Just Browsing Challenges ------------ None Game ------ Seed BoltAmuletNanosword Manual? 0 Play Time 00:34:56 Cumulative 21.6 hours Start 2024.10.21 @ 09:51:50 End 2024.10.21 @ 10:24:20 Sessions 1 Manual Loads 0 Difficulty Rogue Special Mode None Game No. 33 Rogue 33 Adventurer 0 Explorer 0 Win Type - Total 0 Types 0/0/0/0/0/0/0/0/0 Lore% 14 Gallery% 25 Achievement% 24 Wizard Run 0 Options --------- Layout 1 ASCII 1 Keyboard 0 Movement Numpad Keybinds 0 Fullscreen 1 Font 48/Smallcaps Map View 76x35 Zoom Use 0% Tactical HUD 1 Map Filters NONE Filters NONE Steam 1 RUN: 58be89ec-6add-4ac6-a5c5-8962b0a1978c